bitfinex/quotes_BTCUSD_20260104
["timestamp","ask_amount","ask_price","bid_price","bid_amount"]
[1767503002010,0.03833437,91299.0,91275.0,0.0109559]
[1767503002210,0.01095374,91293.0,91284.0,0.01095482]
[1767503002547,0.01095386,91292.0,91284.0,0.01095482]
[1767503002703,0.01095398,91291.0,91282.0,0.01095506]
[1767503002922,0.01095398,91291.0,91284.0,0.06572893]
[1767503003117,0.01095374,91293.0,91291.0,0.000499]
[1767503003323,0.01095374,91293.0,91287.0,0.01095446]
[1767503003324,0.03287314,91298.0,91289.0,0.05477054]
[1767503003655,0.01095326,91297.0,91292.0,0.01095386]
[1767503003855,0.01095326,91297.0,91291.0,0.01095398]
[1767503003856,0.01095338,91296.0,91291.0,0.05676299]
[1767503004025,0.01095338,91296.0,91292.0,0.01095386]
[1767503004200,0.000999,91292.0,91291.0,0.04580901]
[1767503004400,0.010999,91292.0,91289.0,0.05676323]
[1767503004715,0.01,91292.0,91289.0,0.05676323]
[1767503004920,0.01095362,91294.0,91289.0,0.05676323]
[1767503005121,0.0109535,91295.0,91290.0,0.05676311]
[1767503005445,0.01095338,91296.0,91291.0,0.01095398]
[1767503006887,0.0109535,91295.0,91290.0,0.05676311]
[1767503007092,0.000999,91291.0,91290.0,0.05676311]
[1767503007296,0.02192012,91294.0,91291.0,0.01095398]
[1767503007528,0.06572012,91297.0,91280.0,0.0109553]
[1767503007529,0.01095422,91289.0,91280.0,0.0109553]
[1767503007743,0.01,91291.0,91285.0,0.054773]
[1767503007957,0.01,91291.0,91288.0,0.04580901]
[1767503008163,0.0003589,91299.0,91297.0,0.04580901]
[1767503010161,0.01095254,91303.0,91299.0,0.04868092]
[1767503010361,0.01095254,91303.0,91299.0,0.04878852]
[1767503010768,0.01095266,91302.0,91299.0,0.04878852]
[1767503011016,0.01095254,91303.0,91299.0,0.04878852]
[1767503011520,0.01095242,91304.0,91299.0,0.05974154]
[1767503011686,0.01095254,91303.0,91299.0,0.00485154]
[1767503011893,0.01095254,91303.0,91298.0,0.01095314]
[1767503012075,0.01106016,91303.0,91298.0,0.01095314]
[1767503012476,0.01106016,91303.0,91299.0,0.01095302]
[1767503012902,0.01106016,91303.0,91298.0,0.01095314]
[1767503013100,0.01095266,91302.0,91298.0,0.01095314]
[1767503013484,0.01106016,91303.0,91298.0,0.01095314]
[1767503013845,0.00010762,91303.0,91299.0,0.01095302]
[1767503014003,0.01106016,91303.0,91298.0,0.01095314]
[1767503014910,0.01106016,91303.0,91299.0,0.01095302]
[1767503015115,0.000999,91299.0,91296.0,0.01095338]
[1767503015515,0.01095278,91301.0,91296.0,0.01095338]
[1767503015718,0.01106016,91303.0,91297.0,0.01095326]
[1767503015879,0.01095266,91302.0,91298.0,0.01095314]
[1767503016083,0.01095266,91302.0,91297.0,0.01095326]
[1767503016526,0.01095266,91302.0,91298.0,0.01095314]
[1767503016850,0.01106016,91303.0,91298.0,0.01095314]
[1767503017656,0.01095266,91302.0,91297.0,0.01095326]
[1767503017979,0.01095266,91302.0,91297.0,0.00845326]
[1767503018483,0.01095266,91302.0,91298.0,0.01095314]
[1767503018616,0.01095266,91302.0,91297.0,0.00845326]
[1767503019044,0.01095278,91301.0,91296.0,0.01095338]
[1767503019661,0.01095266,91302.0,91297.0,0.01095326]
[1767503020203,0.01095278,91301.0,91296.0,0.01095338]
[1767503021744,0.0109529,91300.0,91295.0,0.0109535]
[1767503021927,0.0109529,91300.0,91295.0,0.0109094]
[1767503022126,0.0109529,91300.0,91296.0,0.01095338]
[1767503022821,0.01095278,91301.0,91296.0,0.00845338]
[1767503025486,0.01095278,91301.0,91297.0,0.01095326]
[1767503025901,0.00010762,91303.0,91299.0,0.01095302]
[1767503026103,0.01106016,91311.0,91304.0,0.05476211]
[1767503026401,0.0109517,91310.0,91305.0,0.0109523]
[1767503026558,0.08763001,91311.0,91305.0,0.0109523]
[1767503026559,0.0151441,91311.0,91306.0,0.11550567]
[1767503026766,0.02609568,91311.0,91306.0,0.06074501]
[1767503027167,0.05475762,91312.0,91306.0,0.06074501]
[1767503027365,0.000999,91306.0,91305.0,0.0109523]
[1767503027569,0.0109517,91310.0,91306.0,0.01095218]
[1767503029482,0.01095158,91311.0,91306.0,0.01095218]
[1767503030268,0.01095146,91312.0,91306.0,0.06074501]
[1767503030477,0.0547567,91314.0,91306.0,0.06074501]
[1767503030478,0.01095122,91314.0,91310.0,0.0109517]
[1767503030591,0.000999,91310.0,91309.0,0.01095182]
[1767503030794,0.01,91309.0,91306.0,0.01095218]
[1767503031840,0.01,91309.0,91306.0,0.00995318]
[1767503032357,0.01,91309.0,91305.0,0.0109523]
[1767503032859,0.01,91309.0,91306.0,0.01095218]
[1767503033177,0.00189762,91310.0,91307.0,0.01095206]
[1767503033466,0.00189762,91310.0,91306.0,0.01095218]
[1767503034020,0.01095182,91309.0,91303.0,0.01095254]
[1767503034232,0.01,91306.0,91305.0,0.0109523]
[1767503034430,0.009001,91306.0,91305.0,0.0109523]
[1767503034765,0.01284932,91310.0,91305.0,0.0109523]
[1767503034928,0.01284932,91310.0,91305.0,0.01066711]
[1767503035515,0.01284932,91310.0,91301.0,0.04979283]
[1767503035516,0.01095182,91309.0,91298.0,0.01095314]
[1767503035705,0.01284932,91310.0,91299.0,0.02192]
[1767503035706,0.01095242,91304.0,91299.0,0.02192]
[1767503035905,0.01095254,91303.0,91299.0,0.02192]
[1767503036124,0.01095242,91304.0,91299.0,0.03287302]
[1767503036496,0.0109523,91305.0,91300.0,0.0109529]
[1767503036680,0.01095254,91303.0,91299.0,0.01095302]
[1767503038011,0.01095242,91304.0,91299.0,0.01095302]
[1767503038174,0.05607561,91302.0,91297.0,0.01095326]
[1767503038377,0.000999,91297.0,91295.0,0.02192]
[1767503039037,0.0109529,91300.0,91295.0,0.0328735]
[1767503039197,0.01095314,91298.0,91295.0,0.02192]
[1767503039401,0.01095302,91299.0,91295.0,0.02192]
[1767503039600,0.01095314,91298.0,91295.0,0.02192]
[1767503040378,0.05476631,91297.0,91295.0,0.020921]
[1767503040585,0.01095338,91296.0,91292.0,0.01095386]
[1767503040807,0.01095338,91296.0,91292.0,0.00010762]
[1767503041013,0.06571865,91299.0,91296.0,0.000999]
[1767503041417,0.0109529,91300.0,91296.0,0.000999]
[1767503041618,0.0109523,91305.0,91296.0,0.01095338]
[1767503041838,0.01095254,91303.0,91296.0,0.01095338]
[1767503042278,0.00995354,91303.0,91299.0,0.01095302]
[1767503043553,0.0109523,91305.0,91296.0,0.01095338]
[1767503043554,0.01095194,91308.0,91304.0,0.04910959]
[1767503043753,0.01095134,91313.0,91303.0,0.01095254]
[1767503043754,0.01095146,91312.0,91307.0,0.01095206]
[1767503043991,0.01095158,91311.0,91307.0,0.01095206]
[1767503044855,0.01095146,91312.0,91307.0,0.01095206]
[1767503046104,0.01095158,91311.0,91306.0,0.01095218]
[1767503046697,0.01095158,91311.0,91307.0,0.01095206]
[1767503047654,0.01095146,91312.0,91307.0,0.01095206]
[1767503049336,0.01095158,91311.0,91307.0,0.01095206]
[1767503050489,0.01095146,91312.0,91307.0,0.01095206]
[1767503050890,0.01095158,91311.0,91307.0,0.01095206]
[1767503051753,0.000999,91307.0,91305.0,0.06571332]
[1767503052202,0.01095158,91311.0,91306.0,0.01095218]
[1767503052409,0.01095182,91309.0,91305.0,0.0109523]
[1767503052634,0.0109517,91310.0,91305.0,0.0109523]
[1767503052766,0.06570919,91312.0,91306.0,0.01095218]
[1767503052973,0.01095158,91311.0,91306.0,0.01095218]
[1767503053792,0.01095158,91311.0,91307.0,0.01095206]
[1767503054635,0.01095146,91312.0,91307.0,0.01095206]
[1767503054835,0.01095158,91311.0,91305.0,0.0109523]
[1767503055046,0.000999,91307.0,91305.0,0.0109523]
[1767503055395,0.0109517,91310.0,91306.0,0.01095218]
[1767503057903,0.0109517,91310.0,91305.0,0.0109523]
[1767503058074,0.0578203,91310.0,91301.0,0.04238322]
[1767503058316,0.01095182,91309.0,91303.0,0.01095254]
[1767503058445,0.01095182,91309.0,91304.0,0.01095242]
[1767503060317,0.01095182,91309.0,91304.0,0.06006201]
[1767503060525,0.06571074,91310.0,91305.0,0.0109523]
[1767503060526,0.0109517,91310.0,91305.0,0.0109523]
[1767503060826,0.0109517,91310.0,91306.0,0.01095218]
[1767503061037,0.0109517,91310.0,91305.0,0.0109523]
[1767503062241,0.06571075,91310.0,91304.0,0.03138199]
[1767503062453,0.0080487,91304.0,91302.0,0.06006225]
[1767503062797,0.01095206,91307.0,91303.0,0.01095254]
[1767503063005,0.01095194,91308.0,91303.0,0.01095254]
[1767503063408,0.01095194,91308.0,91304.0,0.01095242]
[1767503063604,0.01095182,91309.0,91304.0,0.01095242]
[1767503064010,0.000999,91304.0,91302.0,0.06006225]
[1767503064214,0.01195142,91304.0,91302.0,0.06006225]
[1767503064424,0.000999,91304.0,91302.0,0.06006225]
[1767503064672,0.01095206,91307.0,91302.0,0.06006225]
[1767503064994,0.01095206,91307.0,91303.0,0.01095254]
[1767503065201,0.01095206,91307.0,91303.0,0.06006213]
[1767503065448,0.01095194,91308.0,91303.0,0.06006213]
[1767503066365,0.01095194,91308.0,91304.0,0.01095242]
[1767503066918,0.01095206,91307.0,91303.0,0.06006213]
[1767503067131,0.06571075,91310.0,91305.0,0.0109523]
[1767503067670,0.0109517,91310.0,91305.0,0.0109523]
[1767503069675,0.0109517,91310.0,91306.0,0.01095218]
[1767503070581,0.01095158,91311.0,91306.0,0.01095218]
[1767503070957,0.0109517,91310.0,91306.0,0.01095218]
[1767503071158,0.0109517,91310.0,91305.0,0.06006189]
[1767503071364,0.01095158,91311.0,91306.0,0.01095218]
[1767503072584,0.01095158,91311.0,91306.0,0.05727548]
[1767503072984,0.01095134,91313.0,91309.0,0.01095182]
[1767503073146,0.01095134,91313.0,91309.0,0.0087921]
[1767503073378,0.01095146,91312.0,91308.0,0.05727524]
[1767503074963,0.00687049,91317.0,91309.0,0.0463233]
[1767503075132,0.06570132,91323.0,91321.0,0.0463233]
[1767503075335,0.000999,91321.0,91319.0,0.0463233]
[1767503075689,0.06570132,91323.0,91318.0,0.01095074]
[1767503075886,0.01095014,91323.0,91318.0,0.01095074]
[1767503076836,0.01095014,91323.0,91319.0,0.01095062]
[1767503077750,0.000999,91319.0,91318.0,0.01095074]
[1767503077957,0.000999,91319.0,91317.0,0.05727416]
[1767503078120,0.01095038,91321.0,91317.0,0.05727416]
[1767503079072,0.01095014,91323.0,91318.0,0.01095074]
[1767503079278,0.01095026,91322.0,91318.0,0.01095074]
[1767503079493,0.01095002,91324.0,91319.0,0.01095062]
[1767503079623,0.01095002,91324.0,91320.0,0.0109505]
[1767503080228,0.01095002,91324.0,91319.0,0.01095062]
[1767503081806,0.0109499,91325.0,91320.0,0.0109505]
[1767503083037,0.0109499,91325.0,91318.0,0.06570444]
[1767503083038,0.019001,91319.0,91318.0,0.01095074]
[1767503083513,0.01095026,91322.0,91318.0,0.01095074]
[1767503083814,0.01095014,91323.0,91318.0,0.01095074]
[1767503084044,0.01094978,91326.0,91319.0,0.01095062]
[1767503084216,0.01094978,91326.0,91322.0,0.01095026]
[1767503085216,0.08761846,91327.0,91322.0,0.01095026]
[1767503086897,0.02192,91327.0,91323.0,0.01095014]
[1767503088422,0.01282566,91327.0,91324.0,0.01095002]
[1767503088621,0.01282566,91327.0,91324.0,0.05727332]
[1767503088865,0.0109493,91330.0,91325.0,0.0109499]
[1767503089051,0.0109493,91330.0,91324.0,0.01095002]
[1767503089280,0.0109493,91330.0,91325.0,0.0109499]
[1767503091194,0.01094942,91329.0,91325.0,0.0109499]
[1767503091342,0.01094942,91329.0,91324.0,0.01095002]
[1767503091542,0.01094942,91329.0,91325.0,0.0109499]
[1767503092394,0.0109493,91330.0,91326.0,0.01094978]
[1767503092799,0.01094906,91332.0,91327.0,0.01094966]
[1767503092947,0.0110568,91332.0,91327.0,0.01094966]
[1767503093375,0.01094918,91331.0,91326.0,0.01094978]
[1767503093589,0.0109493,91330.0,91324.0,0.01095002]
[1767503094052,0.01094966,91327.0,91323.0,0.01095014]
[1767503094602,0.01094954,91328.0,91323.0,0.01095014]
[1767503096271,0.04513361,91327.0,91322.0,0.01570112]
[1767503096472,0.01094954,91328.0,91320.0,0.05475251]
[1767503096854,0.01297602,91328.0,91323.0,0.01095014]
[1767503097256,0.01094966,91327.0,91323.0,0.01095014]
[1767503097737,0.01094966,91327.0,91322.0,0.01095026]
[1767503098126,0.000999,91322.0,91320.0,0.05475251]
[1767503098330,0.01094978,91326.0,91321.0,0.05727368]
[1767503098498,0.0109499,91325.0,91321.0,0.0463233]
[1767503098878,0.01094978,91326.0,91321.0,0.05727368]
[1767503100199,0.0109499,91325.0,91321.0,0.05727368]
[1767503100401,0.01095002,91324.0,91321.0,0.0463233]
[1767503100830,0.0109499,91325.0,91321.0,0.0463233]
[1767503101038,0.01094978,91326.0,91321.0,0.0463233]
[1767503101239,0.01095002,91324.0,91321.0,0.0263233]
[1767503101435,0.06569997,91325.0,91320.0,0.0109505]
[1767503101619,0.01095002,91324.0,91320.0,0.0109505]
[1767503101962,0.06569997,91325.0,91320.0,0.0109505]
[1767503101963,0.01094978,91326.0,91321.0,0.01095038]
[1767503102287,0.05474672,91330.0,91322.0,0.06570157]
[1767503102496,0.01094942,91329.0,91326.0,0.01]
[1767503102702,0.01094942,91329.0,91326.0,0.05739698]
[1767503102907,0.0109493,91330.0,91326.0,0.05739698]
[1767503103392,0.01094942,91329.0,91326.0,0.01]
[1767503104368,0.01094942,91329.0,91324.0,0.058347]
[1767503105621,0.01094954,91328.0,91324.0,0.04739698]
[1767503107411,0.01194902,91324.0,91320.0,0.05834748]
[1767503107614,0.01094966,91327.0,91320.0,0.05834748]
[1767503107915,0.01094978,91326.0,91321.0,0.01095038]
[1767503109562,0.01094978,91326.0,91321.0,0.05834736]
[1767503109963,0.0109499,91325.0,91321.0,0.04739698]
[1767503110162,0.0109499,91325.0,91321.0,0.04639798]
[1767503110365,0.0109499,91325.0,91321.0,0.05734836]
[1767503112458,0.0109499,91325.0,91321.0,0.04639798]
[1767503113258,0.01094978,91326.0,91325.0,0.000999]
[1767503113418,0.01094966,91327.0,91325.0,0.000999]
[1767503113621,0.01088078,91327.0,91325.0,0.000999]
[1767503113854,0.01094978,91326.0,91321.0,0.01095038]
[1767503114055,0.01094978,91326.0,91322.0,0.01095026]
[1767503114419,0.01088078,91327.0,91322.0,0.01095026]
[1767503114620,0.01088078,91327.0,91326.0,0.000999]
[1767503115040,0.01088078,91327.0,91322.0,0.01095026]
[1767503116465,0.01094978,91326.0,91321.0,0.05834736]
[1767503117211,0.0109499,91325.0,91321.0,0.04739698]
[1767503117491,0.01094978,91326.0,91321.0,0.05834736]
[1767503117699,0.0109499,91325.0,91321.0,0.04739698]
[1767503118041,0.0109499,91325.0,91321.0,0.05834736]
[1767503119537,0.01095002,91324.0,91321.0,0.04739698]
[1767503121826,0.0109499,91325.0,91321.0,0.04739698]
[1767503123854,0.01094978,91326.0,91325.0,0.000999]
[1767503124155,0.01094978,91326.0,91321.0,0.05834736]
[1767503124719,0.0108809,91326.0,91321.0,0.05834736]
[1767503126768,0.0109499,91325.0,91321.0,0.04739698]
[1767503128682,0.01095002,91324.0,91321.0,0.04739698]
[1767503129585,0.0109499,91325.0,91321.0,0.01095038]
[1767503129815,0.0109499,91325.0,91317.0,0.01095086]
[1767503130045,0.0109499,91325.0,91319.0,0.06557792]
[1767503130238,0.0108809,91326.0,91321.0,0.01095038]
[1767503132768,0.0109499,91325.0,91321.0,0.01095038]
[1767503133816,0.0108809,91326.0,91321.0,0.01095038]
[1767503134024,0.0109499,91325.0,91320.0,0.05949974]
[1767503135140,0.01095002,91324.0,91320.0,0.05949974]
[1767503136236,0.01085969,91325.0,91320.0,0.05949974]
[1767503136853,0.0108809,91326.0,91321.0,0.05949962]
[1767503137569,0.01095134,91313.0,91310.0,0.04854924]
[1767503137776,0.01072334,91313.0,91310.0,0.04854924]
[1767503137992,0.01095146,91312.0,91309.0,0.07046924]
[1767503138208,0.01095146,91312.0,91305.0,0.05476102]
[1767503138209,0.0105108,91312.0,91305.0,0.06571332]
[1767503138417,0.0105108,91312.0,91307.0,0.03287206]
[1767503138624,0.0109511,91315.0,91309.0,0.01095182]
[1767503138854,0.0109511,91315.0,91312.0,0.01]
[1767503139072,0.01095098,91316.0,91312.0,0.01]
[1767503139771,0.01095086,91317.0,91312.0,0.02095146]
[1767503140429,0.01095086,91317.0,91313.0,0.01095134]
[1767503141559,0.01095074,91318.0,91313.0,0.01095134]
[1767503142283,0.0109505,91320.0,91318.0,0.01]
[1767503142809,0.0109505,91320.0,91318.0,0.05755024]
[1767503143012,0.01095038,91321.0,91318.0,0.05755024]
[1767503143347,0.01095026,91322.0,91318.0,0.04854924]
[1767503144273,0.01095038,91321.0,91318.0,0.04854924]
[1767503144662,0.01095038,91321.0,91316.0,0.05950022]
[1767503144885,0.0109505,91320.0,91316.0,0.05950022]
[1767503145283,0.06570373,91319.0,91313.0,0.01095134]
[1767503145491,0.01194998,91316.0,91313.0,0.04854924]
[1767503146736,0.0109511,91315.0,91311.0,0.04854924]
[1767503147162,0.01095122,91314.0,91311.0,0.04854924]
[1767503147371,0.0109511,91315.0,91310.0,0.02192]
[1767503147516,0.01095134,91313.0,91310.0,0.07046924]
[1767503147719,0.00030763,91311.0,91310.0,0.07046924]
[1767503148556,6.3e-07,91311.0,91310.0,0.07046924]
[1767503148759,0.000307,91310.0,91308.0,0.01095194]
[1767503149015,0.000307,91310.0,91306.0,0.01095218]
[1767503149226,0.01095134,91313.0,91308.0,0.01095194]
[1767503149968,0.01095134,91313.0,91307.0,0.0076717]
[1767503150949,0.01095134,91313.0,91308.0,0.01095194]
[1767503151849,0.01095242,91304.0,91301.0,0.02192]
[1767503152067,0.0109523,91305.0,91304.0,0.000692]
[1767503152272,0.0109523,91305.0,91301.0,0.02192]
[1767503152273,0.01095218,91306.0,91302.0,0.04854924]
[1767503153016,0.01095218,91306.0,91302.0,0.0595019]
[1767503153201,0.01100722,91306.0,91302.0,0.0595019]
[1767503153550,0.01091901,91306.0,91302.0,0.0595019]
[1767503153752,0.01091901,91306.0,91302.0,0.04854924]
[1767503154454,0.01091901,91306.0,91305.0,0.00024749]
[1767503154801,0.01091901,91306.0,91305.0,4.9e-07]
[1767503156827,0.01091901,91306.0,91302.0,0.05238559]
[1767503157231,0.0109523,91305.0,91301.0,0.01095278]
[1767503157433,0.01086208,91305.0,91300.0,0.05950214]
[1767503158090,0.01100722,91306.0,91301.0,0.04854924]
[1767503158314,0.01100722,91306.0,91301.0,0.05950202]
[1767503158479,5.504e-05,91306.0,91303.0,0.04854924]
[1767503158689,0.01095194,91308.0,91307.0,0.00894595]
[1767503158888,0.01095194,91308.0,91305.0,0.04854924]
[1767503159315,0.01095182,91309.0,91305.0,0.04854924]
[1767503160310,0.01095182,91309.0,91305.0,0.04831534]
[1767503161327,0.01095194,91308.0,91305.0,0.04831534]
[1767503161535,0.0109517,91310.0,91305.0,0.05926764]
[1767503161740,0.0109517,91310.0,91308.0,0.009001]
[1767503162298,0.0109517,91310.0,91305.0,0.05926764]
[1767503162702,0.00047949,91311.0,91307.0,0.04687319]
[1767503162903,0.05475729,91313.0,91312.0,0.04687319]
[1767503163100,0.01063308,91316.0,91314.0,0.04687319]
[1767503163519,0.01095038,91321.0,91315.0,0.05782429]
[1767503163718,0.0109505,91320.0,91317.0,0.04687319]
[1767503164198,0.0109505,91320.0,91317.0,0.04587419]
[1767503164626,0.0657035,91320.0,91317.0,0.04587419]
[1767503165050,0.06563461,91320.0,91317.0,0.04587419]
[1767503165240,0.02192,91322.0,91320.0,0.01]
[1767503165636,0.0109499,91325.0,91321.0,0.04687319]
[1767503165843,0.01101282,91325.0,91321.0,0.04687319]
[1767503166080,0.08761738,91328.0,91325.0,0.04687319]
[1767503166400,0.08761738,91328.0,91325.0,0.03355872]
[1767503166401,0.01094954,91328.0,91325.0,0.03355872]
[1767503167362,0.06569738,91328.0,91325.0,0.03355872]
[1767503168724,0.01094942,91329.0,91328.0,0.009001]
[1767503169195,0.01094954,91328.0,91323.0,0.01095014]
[1767503169459,0.01094966,91327.0,91323.0,0.01095014]
[1767503169641,0.00995066,91327.0,91323.0,0.01095014]
[1767503169781,0.00995066,91327.0,91322.0,0.01095026]
[1767503169994,0.00995066,91327.0,91323.0,0.01095014]
[1767503170197,0.01094978,91326.0,91321.0,0.01095038]
[1767503171545,0.01094942,91329.0,91323.0,0.01095014]
[1767503171757,0.01094942,91329.0,91317.0,0.30616091]
[1767503171758,0.0001508,91334.0,91331.0,0.05782237]
[1767503171988,0.0001508,91334.0,91331.0,0.06569465]
[1767503172220,0.0001508,91334.0,91330.0,0.0109493]
[1767503172360,0.0001508,91334.0,91331.0,0.01094918]
[1767503172989,0.0001508,91334.0,91331.0,0.06569464]
[1767503173206,8e-07,91334.0,91331.0,0.06569464]
[1767503173606,8e-07,91334.0,91332.0,0.05474477]
[1767503173832,0.04410745,91340.0,91337.0,0.01094846]
[1767503174457,0.01094774,91343.0,91338.0,0.01094834]
[1767503174656,0.00015,91338.0,91337.0,0.01094846]
[1767503175068,0.01094786,91342.0,91337.0,0.01094846]
[1767503175665,0.01094786,91342.0,91331.0,0.05782237]
[1767503175666,0.01094798,91341.0,91331.0,0.05782237]
[1767503175827,0.01094882,91334.0,91329.0,0.05782261]
[1767503176040,0.01194825,91337.0,91331.0,0.04687319]
[1767503176841,0.01094858,91336.0,91330.0,0.0109493]
[1767503177067,0.00015,91331.0,91330.0,0.0109493]
[1767503177268,0.01094858,91336.0,91331.0,0.01094918]
[1767503177684,0.0109487,91335.0,91331.0,0.01094918]
[1767503177886,0.01094858,91336.0,91331.0,0.01094918]
[1767503178231,0.01094846,91337.0,91332.0,0.01094906]
[1767503180343,0.06569053,91338.0,91333.0,0.01094894]
[1767503180569,0.06569053,91338.0,91332.0,0.01094906]
[1767503180570,0.00015,91333.0,91332.0,0.01094906]
[1767503180726,0.01094846,91337.0,91333.0,0.01094894]
[1767503180925,0.01094858,91336.0,91332.0,0.01094906]
[1767503181347,0.01094858,91336.0,91331.0,0.01094918]
[1767503181964,0.01094858,91336.0,91332.0,0.01094906]
[1767503182310,0.01094846,91337.0,91332.0,0.01094906]
[1767503183890,0.01094846,91337.0,91333.0,0.01094894]
[1767503186957,0.01094834,91338.0,91333.0,0.01094894]
[1767503187139,0.00114979,91333.0,91331.0,0.05782237]
[1767503187358,0.00099979,91333.0,91331.0,0.05782237]
[1767503187714,0.01094846,91337.0,91332.0,0.01094906]
[1767503187915,0.01094846,91337.0,91333.0,0.01094894]
[1767503188115,0.00015,91333.0,91330.0,0.0109493]
[1767503188533,0.0109487,91335.0,91330.0,0.0109493]
[1767503188874,0.0109487,91335.0,91331.0,0.01094918]
[1767503189190,0.01094858,91336.0,91331.0,0.01094918]
[1767503189614,0.00015,91331.0,91329.0,0.06569603]
[1767503189815,0.00015,91331.0,91329.0,0.11256922]
[1767503190170,0.01094882,91334.0,91330.0,0.0109493]
[1767503190369,0.01094882,91334.0,91329.0,0.04687319]
[1767503190370,0.01094894,91333.0,91329.0,0.04687319]
[1767503190577,0.00099979,91330.0,91329.0,0.04687319]
[1767503190950,0.01094894,91333.0,91329.0,0.05782261]
[1767503191152,0.01094978,91326.0,91319.0,0.01095062]
[1767503191374,0.01094978,91326.0,91320.0,0.08053585]
[1767503191599,0.01095002,91324.0,91321.0,0.04766535]
[1767503191753,0.0109499,91325.0,91321.0,0.04766535]
[1767503192468,0.01095002,91324.0,91321.0,0.04766535]
[1767503194590,0.0109499,91325.0,91321.0,0.04766535]
[1767503195190,0.01094978,91326.0,91321.0,0.05861573]
[1767503195411,0.01094966,91327.0,91323.0,0.04942152]
[1767503195796,0.0109493,91330.0,91327.0,0.000849]
[1767503195997,0.01088039,91330.0,91327.0,0.0098492]
[1767503196198,0.01081148,91330.0,91327.0,0.0090002]
[1767503196807,0.01081148,91330.0,91325.0,0.06037142]
[1767503197457,0.01094906,91332.0,91326.0,0.01094978]
[1767503197657,0.01003114,91332.0,91330.0,0.0090002]
[1767503197812,0.05474592,91331.0,91330.0,0.0090002]
[1767503198012,0.01094954,91328.0,91323.0,0.06037166]
[1767503198229,0.01088062,91328.0,91323.0,0.06037166]
[1767503198820,0.01094966,91327.0,91323.0,0.04942152]
[1767503199012,0.01094978,91326.0,91323.0,0.04942152]
[1767503199860,0.01094966,91327.0,91323.0,0.04942152]
[1767503200739,0.01094966,91327.0,91323.0,0.06037166]
[1767503201594,0.00199879,91323.0,91321.0,0.01095038]
[1767503201788,0.00190857,91323.0,91321.0,0.01095038]
[1767503201975,0.00099979,91323.0,91321.0,0.01095038]
[1767503202315,0.0109499,91325.0,91321.0,0.01095038]
[1767503203739,0.01095002,91324.0,91320.0,0.02192]
[1767503204392,0.01095002,91324.0,91320.0,0.0328705]
[1767503205006,0.00099979,91320.0,91311.0,0.04942152]
[1767503205207,0.00099979,91320.0,91290.0,0.2]
[1767503205208,0.01095158,91311.0,91306.0,0.04942152]
[1767503205410,0.01077124,91310.0,91305.0,0.01143181]
[1767503205610,0.00977224,91310.0,91305.0,0.06085333]
[1767503206062,0.01095146,91312.0,91306.0,0.06571306]
[1767503206232,0.01095158,91311.0,91310.0,0.0090002]
[1767503206691,0.0109517,91310.0,91306.0,0.0110151]
[1767503206900,0.06570932,91312.0,91307.0,0.01095206]
[1767503207081,0.01095158,91311.0,91306.0,0.0110151]
[1767503207449,0.01095158,91311.0,91307.0,0.01095206]
[1767503207778,0.01095158,91311.0,91306.0,0.0110151]
[1767503207987,0.01095158,91311.0,91307.0,0.01095206]
[1767503208142,0.01086136,91311.0,91307.0,0.01095206]
[1767503209396,0.01086136,91311.0,91306.0,0.0110151]
[1767503209615,0.01077113,91311.0,91306.0,0.0110151]
[1767503210164,0.01095158,91311.0,91306.0,0.0110151]
[1767503211271,0.01088266,91311.0,91306.0,0.0110151]
[1767503213488,0.01095182,91309.0,91306.0,6.292e-05]
[1767503213907,0.0109517,91310.0,91306.0,6.292e-05]
[1767503214610,0.01088266,91311.0,91306.0,0.0110151]
[1767503214811,0.0109517,91310.0,91306.0,6.292e-05]
[1767503214974,0.0109517,91310.0,91306.0,0.0110151]
[1767503215761,0.01088266,91311.0,91305.0,0.00047951]
[1767503215762,0.00093608,91306.0,91305.0,0.00047951]
[1767503215960,0.0109523,91305.0,91302.0,0.0001508]
[1767503216166,0.01095206,91307.0,91302.0,0.01110346]
[1767503216412,0.01095194,91308.0,91303.0,0.01095254]
[1767503216793,0.01095218,91306.0,91302.0,0.01110346]
[1767503217176,0.01095206,91307.0,91302.0,0.01110346]
[1767503217376,0.01095206,91307.0,91303.0,0.01095254]
[1767503217579,0.01095194,91308.0,91303.0,0.01095254]
[1767503218048,0.01095182,91309.0,91308.0,6.3e-05]
[1767503218292,0.01095194,91308.0,91303.0,0.01095254]
[1767503219209,0.01095194,91308.0,91303.0,0.01090843]
[1767503219415,0.01095206,91307.0,91303.0,0.01090843]
[1767503219613,0.01095206,91307.0,91302.0,0.01110346]
[1767503219976,0.0008482,91302.0,91298.0,0.05476537]
[1767503220184,0.00077928,91302.0,91299.0,0.06571761]
[1767503220382,0.01095218,91306.0,91301.0,0.01095278]
[1767503220579,0.01095206,91307.0,91302.0,0.01095266]
[1767503220912,0.01095206,91307.0,91303.0,0.01095254]
[1767503221116,0.01095194,91308.0,91304.0,0.01095242]
[1767503221292,0.05475679,91313.0,91309.0,0.04777702]
[1767503221480,0.01095134,91313.0,91309.0,0.01095182]
[1767503222639,0.01095134,91313.0,91308.0,0.01095194]
[1767503223759,0.0109517,91310.0,91306.0,0.04777702]
[1767503223966,0.0017158,91308.0,91303.0,0.05872956]
[1767503224364,0.01188874,91308.0,91304.0,0.01095242]
[1767503224590,0.01095182,91309.0,91305.0,0.0109523]
[1767503224818,0.01095194,91308.0,91304.0,0.01095242]
[1767503224972,0.000779,91305.0,91304.0,0.01095242]
[1767503225370,0.01095146,91312.0,91309.0,0.0090632]
[1767503225703,0.01095146,91312.0,91309.0,0.04777702]
[1767503225929,0.01095134,91313.0,91309.0,0.04777702]
[1767503226348,0.01095146,91312.0,91309.0,0.04777702]
[1767503228910,0.00995246,91312.0,91309.0,0.04777702]
[1767503229737,0.01095134,91313.0,91309.0,0.04777702]
[1767503230949,0.01095134,91313.0,91309.0,0.05872884]
[1767503231175,0.03287122,91314.0,91309.0,0.05872884]
[1767503231356,0.03287122,91314.0,91311.0,0.04777702]
[1767503233397,0.05475731,91312.0,91311.0,0.04677802]
[1767503233678,0.08762771,91314.0,91311.0,0.04584122]
[1767503237088,0.08662871,91314.0,91311.0,0.04584122]
[1767503238003,0.05475712,91313.0,91311.0,0.04584122]
[1767503238203,0.01095158,91311.0,91306.0,0.0587292]
[1767503238408,0.01095158,91311.0,91308.0,0.04777702]
[1767503238585,0.01095158,91311.0,91308.0,0.04677802]
[1767503239380,0.06570991,91311.0,91308.0,0.04677802]
[1767503243223,0.06570991,91311.0,91308.0,0.0303691]
[1767503243442,0.01095182,91309.0,91306.0,0.04777702]
[1767503243641,0.01095158,91311.0,91309.0,0.010999]
[1767503244225,0.01095158,91311.0,91309.0,0.01]
[1767503244917,0.01095158,91311.0,91306.0,0.0587292]
[1767503245627,0.01095158,91311.0,91306.0,0.01095218]
[1767503245842,0.01095146,91312.0,91311.0,0.000999]
[1767503246047,0.08662875,91314.0,91311.0,0.000999]
[1767503246252,0.020921,91314.0,91311.0,0.000999]
[1767503246457,0.02187222,91314.0,91311.0,0.000999]
[1767503246661,0.02187222,91314.0,91310.0,0.0109517]